fUSD/lending_fUSD_20260127
["ID","MTS","AMOUNT","RATE_DAILY","PERIOD"]
[403722918,1769508680153,-151.0,0.00038356,120]
[403722919,1769508680162,-218.195489,0.00038356,120]
[403722920,1769508680171,-375.883291,0.00038356,120]
[403722921,1769508680183,-191.694344,0.00038356,120]
[403722922,1769508680193,-22736.400278,0.00038356,120]
[403722923,1769508680201,-22736.400278,0.00038356,120]
[403722924,1769508680210,-22736.400278,0.00038356,120]
[403722925,1769508680220,-22736.400278,0.00038356,120]
[403722926,1769508680229,-22736.400278,0.00038356,120]
[403722927,1769508680238,-22736.400278,0.00038356,120]
[403722928,1769508680247,-22736.400278,0.00038356,120]
[403722929,1769508680257,-22736.400278,0.00038356,120]
[403722930,1769508680266,-22736.400278,0.00038356,120]
[403722931,1769508680275,-22736.400278,0.00038356,120]
[403722932,1769508680285,-611.962154,0.00038356,120]
[403722933,1769508680294,-611.962154,0.00038356,120]
[403722934,1769508680303,-22736.400278,0.00038356,120]
[403722935,1769508680312,-281.903925,0.00038356,120]
[403722936,1769508680325,-611.962154,0.00038356,120]
[403722937,1769508680334,-22736.400278,0.00038356,120]
[403722938,1769508680343,-281.903925,0.00038356,120]
[403722939,1769508680352,-611.962154,0.00038356,120]
[403722940,1769508680361,-22736.400278,0.00038356,120]
[403722941,1769508680370,-281.903925,0.00038356,120]
[403722942,1769508680379,-611.962154,0.00038356,120]
[403722943,1769508680388,-22736.400278,0.00038356,120]
[403722944,1769508680397,-281.903925,0.00038356,120]
[403722945,1769508680407,-611.962154,0.00038356,120]
[403722946,1769508680416,-22736.400278,0.00038356,120]
[403722947,1769508680426,-281.903925,0.00038356,120]
[403722948,1769508680435,-611.962154,0.00038356,120]
[403722949,1769508680444,-22736.400278,0.00038356,120]
[403722950,1769508680454,-281.903925,0.00038356,120]
[403722951,1769508680463,-22736.400278,0.00038356,120]
[403722952,1769508680472,-611.962154,0.00038356,120]
[403722953,1769508680482,-281.903925,0.00038356,120]
[403722954,1769508680491,-157.681569,0.00038356,120]
[403722955,1769508680501,-22736.400278,0.00038356,120]
[403722956,1769508680510,-611.962154,0.00038356,120]
[403722957,1769508680519,-281.903925,0.00038356,120]
[403722958,1769508680529,-22736.400278,0.00038356,120]
[403722959,1769508680538,-157.681569,0.00038356,120]
[403722960,1769508680548,-611.962154,0.00038356,120]
[403722961,1769508680557,-281.903925,0.00038356,120]
[403722962,1769508680566,-157.681569,0.00038356,120]
[403722963,1769508680576,-611.962154,0.00038356,120]
[403722964,1769508680585,-22736.400269,0.00038356,120]
[403722965,1769508680594,-151.0,0.00038356,120]
[403722966,1769508680604,-281.903925,0.00038356,120]
[403722967,1769508680613,-157.681569,0.00038356,120]
[403722968,1769508680622,-611.962154,0.00038356,120]
[403722969,1769508680631,-151.0,0.00038356,120]
[403722970,1769508680640,-453.47599,0.00038356,90]
[403722971,1769508680649,-281.903925,0.00038356,120]
[403722972,1769508680658,-157.681569,0.00038356,120]
[403722973,1769508680667,-611.962154,0.00038356,120]
[403722974,1769508680676,-151.0,0.00038356,120]
[403722975,1769508680685,-453.47599,0.00038356,90]
[403722976,1769508680694,-281.903925,0.00038356,120]
[403722977,1769508680703,-157.681569,0.00038356,120]
[403722978,1769508680716,-611.962154,0.00038356,120]
[403722979,1769508680725,-453.47599,0.00038356,90]
[403722980,1769508680735,-281.903925,0.00038356,120]
[403722981,1769508680744,-157.681569,0.00038356,120]
[403722982,1769508680753,-611.962154,0.00038356,120]
[403722983,1769508680762,-268.866995,0.00038356,120]
[403722984,1769508680770,-151.0,0.00038356,120]
[403722985,1769508680779,-453.47599,0.00038356,90]
[403722986,1769508680788,-281.903925,0.00038356,120]
[403722987,1769508680799,-157.681569,0.00038356,120]
[403722988,1769508680808,-611.962154,0.00038356,120]
[403722989,1769508680817,-268.866995,0.00038356,120]
[403722990,1769508680826,-151.0,0.00038356,120]
[403722991,1769508680835,-453.47599,0.00038356,90]
[403722992,1769508680844,-281.903925,0.00038356,120]
[403722993,1769508680853,-157.681569,0.00038356,120]
[403722994,1769508680862,-611.962154,0.00038356,120]
[403722995,1769508680871,-268.866995,0.00038356,120]
[403722996,1769508680881,-151.0,0.00038356,120]
[403722997,1769508680890,-151.0,0.00038356,120]
[403722998,1769508680899,-453.47599,0.00038356,90]
[403722999,1769508680909,-157.681569,0.00038356,120]
[403723000,1769508680918,-281.903925,0.00038356,120]
[403723001,1769508680928,-611.962154,0.00038356,120]
[403723002,1769508680937,-242.34955,0.00038356,120]
[403723003,1769508680946,-268.866995,0.00038356,120]
[403723004,1769508680955,-151.0,0.00038356,120]
[403723005,1769508680964,-611.962154,0.00038356,120]
[403723006,1769508680973,-157.681569,0.00038356,120]
[403723007,1769508680983,-453.47599,0.00038356,90]
[403723008,1769508680992,-268.866995,0.00038356,120]
[403723009,1769508681002,-151.0,0.00038356,120]
[403723010,1769508681014,-281.903925,0.00038356,120]
[403723011,1769508681024,-157.681569,0.00038356,120]
[403723012,1769508681033,-611.96216,0.00038356,120]
[403723013,1769508681043,-453.47599,0.00038356,90]
[403723014,1769508681053,-268.866995,0.00038356,120]
[403723015,1769508681062,-151.0,0.00038356,120]
[403723016,1769508681072,-281.903925,0.00038356,120]
[403723017,1769508681082,-157.681569,0.00038356,120]
[403723018,1769508681091,-453.47599,0.00038356,90]
[403723019,1769508681100,-268.866995,0.00038356,120]
[403723020,1769508681109,-151.0,0.00038356,120]
[403723021,1769508681120,-281.903925,0.00038356,120]
[403723022,1769508681130,-157.681569,0.00038356,120]
[403723023,1769508681140,-453.47599,0.00038356,90]
[403723024,1769508681150,-268.866995,0.00038356,120]
[403723025,1769508681161,-151.0,0.00038356,120]
[403723026,1769508681171,-281.90392,0.00038356,120]
[403723027,1769508681183,-157.681569,0.00038356,120]
[403723028,1769508681192,-453.47599,0.00038356,90]
[403723029,1769508681201,-268.866995,0.00038356,120]
[403723030,1769508681211,-151.0,0.00038356,120]
[403723031,1769508681220,-268.866995,0.00038356,120]
[403723032,1769508681229,-453.47599,0.00038356,90]
[403723033,1769508681237,-157.681569,0.00038356,120]
[403723034,1769508681246,-151.0,0.00038356,120]
[403723035,1769508681255,-268.866995,0.00038356,120]
[403723036,1769508681264,-453.47599,0.00038356,90]
[403723037,1769508681273,-477.957889,0.00038356,120]
[403723038,1769508681282,-157.681569,0.00038356,120]
[403723039,1769508681291,-151.0,0.00038356,120]
[403723040,1769508681310,-268.866995,0.00038356,120]
[403723041,1769508681320,-453.47599,0.00038356,90]
[403723042,1769508681329,-157.681569,0.00038356,120]
[403723043,1769508681338,-477.957889,0.00038356,120]
[403723044,1769508681347,-283.925299,0.00038356,120]
[403723045,1769508681356,-268.866995,0.00038356,120]
[403723046,1769508681366,-453.47599,0.00038356,90]
[403723047,1769508681375,-157.681569,0.00038356,120]
[403723048,1769508681385,-477.957889,0.00038356,120]
[403723049,1769508681395,-268.866995,0.00038356,120]
[403723050,1769508681405,-453.47599,0.00038356,90]
[403723051,1769508681415,-157.681563,0.00038356,120]
[403723052,1769508681425,-477.957889,0.00038356,120]
[403723053,1769508681434,-453.47599,0.00038356,90]
[403723054,1769508681445,-268.866995,0.00038356,120]
[403723055,1769508681457,-477.957889,0.00038356,120]
[403723056,1769508681467,-453.47599,0.00038356,90]
[403723057,1769508681478,-268.866995,0.00038356,120]
[403723058,1769508681490,-477.957889,0.00038356,120]
[403723059,1769508681501,-453.47599,0.00038356,90]
[403723060,1769508681511,-268.866995,0.00038356,120]
[403723061,1769508681520,-477.957889,0.00038356,120]
[403723062,1769508681530,-453.475998,0.00038356,90]
[403723063,1769508681540,-268.866995,0.00038356,120]
[403723064,1769508681550,-477.957889,0.00038356,120]
[403723065,1769508681560,-268.866995,0.00038356,120]
[403723066,1769508681570,-477.957889,0.00038356,120]
[403723067,1769508681580,-485.114118,0.00038356,120]
[403723068,1769508681591,-477.957889,0.00038356,120]
[403723069,1769508681601,-485.114118,0.00038356,120]
[403723070,1769508681611,-477.957889,0.00038356,120]
[403723071,1769508681621,-268.866988,0.00038356,120]
[403723072,1769508681630,-485.114118,0.00038356,120]
[403723073,1769508681639,-2655.14497,0.00038356,120]
[403723074,1769508681650,-477.957889,0.00038356,120]
[403723075,1769508681661,-214.809834,0.00038356,120]
[403723076,1769508681671,-485.114118,0.00038356,120]
[403723077,1769508681681,-2655.14497,0.00038356,120]
[403723078,1769508681692,-214.809834,0.00038356,120]
[403723079,1769508681703,-485.114118,0.00038356,120]
[403723080,1769508681714,-2655.14497,0.00038356,120]
[403723081,1769508681725,-214.809834,0.00038356,120]
[403723082,1769508681735,-485.114118,0.00038356,120]
[403723083,1769508681746,-2655.14497,0.00038356,120]
[403723084,1769508681755,-214.809834,0.00038356,120]
[403723085,1769508681766,-485.114118,0.00038356,120]
[403723086,1769508681776,-2655.14497,0.00038356,120]
[403723087,1769508681786,-214.809834,0.00038356,120]
[403723088,1769508681800,-485.114118,0.00038356,120]
[403723089,1769508681810,-2655.14497,0.00038356,120]
[403723090,1769508681820,-214.809834,0.00038356,120]
[403723091,1769508681829,-485.114118,0.00038356,120]
[403723092,1769508681838,-2655.14497,0.00038356,120]
[403723093,1769508681847,-214.809834,0.00038356,120]
[403723094,1769508681857,-485.114118,0.00038356,120]
[403723095,1769508681866,-2655.14497,0.00038356,120]
[403723096,1769508681876,-214.809834,0.00038356,120]
[403723097,1769508681885,-485.114118,0.00038356,120]
[403723098,1769508681894,-2655.14497,0.00038356,120]
[403723099,1769508681904,-214.809834,0.00038356,120]
[403723100,1769508681914,-485.114118,0.00038356,120]
[403723101,1769508681923,-2655.14497,0.00038356,120]
[403723102,1769508681934,-214.809834,0.00038356,120]
[403723103,1769508681944,-485.114118,0.00038356,120]
[403723104,1769508681956,-2655.14497,0.00038356,120]
[403723105,1769508681968,-214.809834,0.00038356,120]
[403723106,1769508681978,-485.114118,0.00038356,120]
[403723107,1769508681987,-2655.14497,0.00038356,120]
[403723108,1769508681996,-214.809834,0.00038356,120]
[403723109,1769508682007,-485.114118,0.00038356,120]
[403723110,1769508682017,-5402.894612,0.00038356,14]
[403723111,1769508682030,-2655.14497,0.00038356,120]
[403723112,1769508682045,-214.809834,0.00038356,120]
[403723113,1769508682055,-485.114118,0.00038356,120]
[403723114,1769508682065,-5402.894612,0.00038356,14]
[403723115,1769508682075,-2655.14497,0.00038356,120]
[403723116,1769508682086,-485.114118,0.00038356,120]
[403723117,1769508682095,-214.809834,0.00038356,120]
[403723118,1769508682105,-5402.894612,0.00038356,14]
[403723119,1769508682115,-2655.14497,0.00038356,120]
[403723120,1769508682124,-485.114118,0.00038356,120]
[403723121,1769508682133,-214.809834,0.00038356,120]
[403723122,1769508682143,-5402.894612,0.00038356,14]
[403723123,1769508682152,-2655.14497,0.00038356,120]
[403723124,1769508682161,-600.0,0.00038356,2]
[403723125,1769508682171,-151.75794433,0.0003848,2]
[403723126,1769508682182,-5000.0,0.000385,70]
[403723127,1769508682192,-250.0,0.000385,45]
[403723128,1769508682201,-250.0,0.000385,45]
[403723129,1769508682210,-250.0,0.000385,45]
[403723130,1769508682220,-200.0,0.000385,120]
[403723131,1769508682230,-1000.0,0.000385,90]
[403723132,1769508682239,-800.0,0.00038578,14]
[403723133,1769508682252,-500.0,0.00038578,14]
[403723134,1769508682265,-150.0,0.0003861,30]
[403723135,1769508682276,-150.0,0.0003861,30]
[403723136,1769508682286,-12129.0,0.00038612,20]
[403723137,1769508682296,-1000.0,0.0003863,14]
[403723138,1769508682305,-1333.0,0.00038638,2]
[403723139,1769508682315,-187.804393,0.00038645,8]
[403723140,1769508682324,-916.0,0.00038724,2]
[403723141,1769508682333,-580.684,0.00038724,2]
[403723142,1769508682344,-2442.0,0.00038724,2]
[403723143,1769508682354,-2831.0,0.000388,11]
[403723144,1769508682364,-691.59834515,0.00038872,2]
[403723145,1769508682373,-1000.0,0.00038904,14]
[403723146,1769508682383,-600.0,0.00038904,2]
[403723147,1769508682393,-503.0,0.00038916,21]
[403723148,1769508682403,-300.15403375,0.00038988,2]
[403723149,1769508682412,-300.0,0.00038988,2]
[403723150,1769508682423,-851.13552092,0.00038988,2]
[403723151,1769508682432,-304.47217561,0.00038988,2]
[403723152,1769508682441,-300.0,0.00038988,2]
[403723153,1769508682454,-579.9373616,0.00038988,2]
[403723154,1769508682464,-300.0,0.00038988,2]
[403723155,1769508682475,-300.0,0.00038988,2]
[403723156,1769508682486,-300.0,0.00038988,2]
[403723157,1769508682496,-305.64576673,0.00038988,2]
[403723158,1769508682507,-300.0,0.00038988,2]
[403723159,1769508682518,-300.0,0.00038988,2]
[403723160,1769508682528,-300.0,0.00038988,2]
[403723161,1769508682539,-456.35570575,0.00038988,2]
[403723162,1769508682549,-300.0,0.00038988,2]
[403723163,1769508682560,-300.0,0.00038988,2]
[403723164,1769508682571,-1076.31223088,0.00038988,2]
[403723165,1769508682584,-300.0,0.00038988,2]
[403723166,1769508682594,-300.0,0.00038988,2]
[403723167,1769508682605,-369.42880651,0.00038988,2]
[403723168,1769508682615,-300.0,0.00038988,2]
[403723169,1769508682625,-300.0,0.00038988,2]
[403723170,1769508682640,-300.0,0.00038988,2]
[403723171,1769508682650,-300.0,0.00038988,2]
[403723172,1769508682660,-300.0,0.00038988,2]
[403723173,1769508682672,-300.0,0.00038988,2]
[403723174,1769508682682,-515.84561609,0.00038988,2]
[403723175,1769508682693,-300.0,0.00038988,2]
[403723176,1769508682703,-304.62142447,0.00038988,2]
[403723177,1769508682714,-300.0,0.00038988,2]
[403723178,1769508682724,-300.0,0.00038988,2]
[403723179,1769508682734,-300.0,0.00038988,2]
[403723180,1769508682745,-300.0,0.00038988,2]
[403723181,1769508682755,-315.2913055,0.00038988,2]
[403723182,1769508682766,-300.0,0.00038988,2]
[403723183,1769508682776,-300.0,0.00038988,2]
[403723184,1769508682786,-300.0,0.00038988,2]
[403723185,1769508682796,-250.0,0.00039,45]
[403723186,1769508682807,-250.0,0.00039,45]
[403723187,1769508682818,-200.0,0.00039,120]
[403723188,1769508682830,-38345.347117,0.00039,120]
[403723189,1769508682841,-12129.0,0.00039006,20]
[403723190,1769508682851,-151.0,0.00039041,120]
[403723191,1769508682862,-151.0,0.00039041,120]
[403723192,1769508682873,-151.0,0.00039041,120]
[403723193,1769508682884,-151.0,0.00039041,120]
[403723194,1769508682895,-151.0,0.00039041,120]
[403723195,1769508682906,-151.0,0.00039041,120]
[403723196,1769508682917,-151.0,0.00039041,120]
[403723197,1769508682927,-151.0,0.00039041,120]
[403723198,1769508682938,-232.0,0.00039041,120]
[403723199,1769508682949,-600.0,0.00039126,14]
[403723200,1769508682960,-1000.0,0.00039178,14]
[403723201,1769508682971,-1159.3356,0.00039203,3]
[403723202,1769508682982,-2000.0,0.00039203,3]
[403723203,1769508682994,-161.42594505,0.000393,2]
[403723204,1769508683005,-8449.89796279,0.000393,2]
[403723205,1769508683016,-500.0,0.00039315,120]
[403723206,1769508683027,-500.0,0.00039315,120]
[403723207,1769508683037,-500.0,0.00039315,120]
[403723208,1769508683047,-500.0,0.00039315,120]
[403723209,1769508683057,-500.0,0.00039315,120]
[403723210,1769508683067,-500.0,0.00039315,120]
[403723211,1769508683077,-230.33984762,0.00039315,120]
[403723212,1769508683088,-551.5,0.00039342,120]
[403723213,1769508683098,-169.44904283,0.0003936,66]
[403723214,1769508683109,-444.68,0.00039366,120]
[403723215,1769508683120,-7119.67312997,0.000394,20]
[403723216,1769508683131,-800.0,0.000394,14]
[403723217,1769508683143,-500.0,0.000394,14]
[403723218,1769508683154,-685310.90415216,0.000394,20]
[403723219,1769508683166,-190.8,0.000394,20]
[403723220,1769508683176,-1546.97,0.000394,14]
[403723221,1769508683190,-2854.57765679,0.000394,2]
[403723222,1769508683208,-16083.23994447,0.000394,2]
[403723223,1769508683221,-12129.0,0.000394,20]
[403723224,1769508683231,-1000.0,0.00039452,14]
[403723225,1769508683242,-150.0,0.00039452,2]
[403723226,1769508683254,-600.0,0.00039452,2]
[403723227,1769508683264,-157.36498,0.00039488,30]
[403723228,1769508683275,-1000.0,0.000395,2]
[403723229,1769508683286,-250.0,0.000395,45]
[403723230,1769508683297,-250.0,0.000395,45]
[403723231,1769508683309,-250.0,0.000395,45]
[403723232,1769508683319,-250.0,0.000395,45]
[403723233,1769508683330,-250.0,0.000395,45]
[403723234,1769508683341,-250.0,0.000395,45]
[403723235,1769508683352,-250.0,0.000395,45]
[403723236,1769508683362,-250.0,0.000395,45]
[403723237,1769508683373,-250.0,0.000395,45]
[403723238,1769508683383,-250.0,0.000395,45]
[403723239,1769508683394,-250.0,0.000395,45]
[403723240,1769508683405,-250.0,0.000395,45]
[403723241,1769508683415,-250.0,0.000395,45]
[403723242,1769508683426,-250.0,0.000395,45]
[403723243,1769508683437,-250.0,0.000395,45]
[403723244,1769508683448,-250.0,0.000395,45]
[403723245,1769508683459,-250.0,0.000395,45]
[403723246,1769508683469,-250.0,0.000395,45]
[403723247,1769508683480,-250.0,0.000395,45]
[403723248,1769508683491,-153.79,0.00039562,2]
[403723249,1769508683502,-150.0,0.00039562,2]
[403723250,1769508683513,-150.0,0.00039562,2]
[403723251,1769508683524,-503.0,0.00039663,22]
[403723252,1769508683534,-157.36498,0.00039688,30]
[403723253,1769508683545,-1000.0,0.00039726,14]
[403723254,1769508683557,-12129.0,0.00039794,20]
[403723255,1769508683568,-2018.56,0.000398,30]
[403723256,1769508683584,-520.67989559,0.000398,120]
[403723257,1769508683595,-1000.0,0.00039864,2]
[403723258,1769508683606,-3975.89737759,0.0003988,30]
[403723259,1769508683618,-157.36498,0.00039888,30]
[403723260,1769508683629,-500.0,0.000399,2]
[403723261,1769508683640,-500.0,0.000399,10]
[403723262,1769508683651,-3589.60000629,0.000399,2]
[403723263,1769508683663,-600.0,0.00039948,14]
[403723264,1769508683673,-80801.53821804,0.0003998,2]
[403723265,1769508683684,-1000.0,0.0004,14]
[403723266,1769508683696,-26359.80264541,0.0004,14]
[403723267,1769508683706,-5000.0,0.0004,3]
[403723268,1769508683717,-389.09158525,0.0004,2]
[403723269,1769508683727,-1554.9511711,0.0004,2]
[403723270,1769508683738,-218.06769793,0.0004,2]
[403723271,1769508683749,-223.90916237,0.0004,2]
[403723272,1769508683760,-313.78070032,0.0004,2]
[403723273,1769508683770,-10650.45627813,0.0004,2]
[403723274,1769508683782,-5006.55164248,0.0004,2]
[403723275,1769508683792,-69049.36404225,0.0004,20]
[403723276,1769508683803,-31110.38705877,0.0004,28]
[403723277,1769508683814,-5149.20016199,0.0004,10]
[403723278,1769508683824,-33962.41543699,0.0004,10]
[403723279,1769508683836,-10971.6708679,0.0004,2]
[403723280,1769508683847,-400.96995974,0.0004,7]
[403723281,1769508683859,-1000.0,0.0004,2]
[403723282,1769508683870,-1110.0,0.0004,15]
[403723283,1769508683880,-1045.9110935,0.0004,10]
[403723284,1769508683892,-200.49255301,0.0004,2]
[403723285,1769508683904,-2299.999999,0.0004,2]
[403723286,1769508683915,-250.0,0.0004,45]
[403723287,1769508683926,-250.0,0.0004,45]
[403723288,1769508683937,-250.0,0.0004,45]
[403723289,1769508683948,-250.0,0.0004,45]
[403723290,1769508683959,-250.0,0.0004,45]
[403723291,1769508683970,-250.0,0.0004,45]
[403723292,1769508683981,-250.0,0.0004,45]
[403723293,1769508683992,-250.0,0.0004,45]
[403723294,1769508684003,-250.0,0.0004,45]
[403723295,1769508684014,-250.0,0.0004,45]
[403723296,1769508684024,-250.0,0.0004,45]
[403723297,1769508684036,-162.46352507,0.0004,120]
[403723298,1769508684047,-250.0,0.0004,45]
[403723299,1769508684057,-155.84620016,0.0004,120]
[403723300,1769508684068,-171.30705983,0.0004,120]
[403723301,1769508684079,-483.51946923,0.0004,120]
[403723302,1769508684090,-612.5126537,0.0004,120]
[403723303,1769508684101,-687.01830667,0.0004,120]
[403723304,1769508684112,-220.97789122,0.0004,120]
[403723305,1769508684124,-211.86098712,0.0004,120]
[403723306,1769508684134,-334.18697545,0.0004,30]
[403723307,1769508684145,-259.37580041,0.0004,30]
[403723308,1769508684155,-718.0,0.0004,120]
[403723309,1769508684166,-194.93438174,0.0004,120]
[403723310,1769508684178,-150.0,0.0004,120]
[403723311,1769508684195,-5000.19753046,0.0004,13]
[403723312,1769508684209,-1968.49941283,0.0004,120]
[403723313,1769508684219,-151.0,0.0004,120]
[403723314,1769508684232,-153.0,0.0004,120]
[403723315,1769508684242,-200.0,0.0004,120]
[403723316,1769508684254,-200.0,0.0004,120]
[403723317,1769508684264,-1809.22107342,0.0004,120]
[403723318,1769508684274,-151.99662,0.0004,10]
[403723319,1769508684284,-2000.0,0.0004,120]
[403723320,1769508684294,-300.0,0.0004,120]
[403723321,1769508684304,-152.61178445,0.0004,120]
[403723322,1769508684314,-457.85240299,0.0004,14]
[403723323,1769508684324,-173.83607773,0.0004,30]
[403723324,1769508684334,-153.88,0.0004,30]
[403723325,1769508684344,-1000.0,0.0004,120]
[403723326,1769508684354,-308.96200088,0.0004,120]
[403723327,1769508684366,-919.53,0.0004,12]
[403723328,1769508684376,-250.0,0.0004,45]
[403723329,1769508684386,-250.0,0.0004,45]
[403723330,1769508684397,-250.0,0.0004,45]
[403723331,1769508684407,-250.0,0.0004,45]
[403723332,1769508684418,-46448.93844963,0.0004,7]
[403723333,1769508684428,-309.27361352,0.0004,2]
[403723334,1769508684439,-100000.0,0.0004,6]
[403723335,1769508684449,-200000.0,0.0004,7]
[403723336,1769508684459,-172.0,0.0004,120]
[403723337,1769508684469,-5000.55105314,0.0004,11]
[403723338,1769508684480,-5000.12345648,0.0004,12]
[403723339,1769508684491,-2018.56,0.0004,30]
[403723340,1769508684502,-151.976,0.0004,30]
[403723341,1769508684515,-1571.56,0.0004,14]
[403723342,1769508684526,-948.0,0.0004,14]
[403723343,1769508684536,-5000.00432763,0.0004,100]
[403723344,1769508684549,-150.0,0.0004,120]
[403723345,1769508684558,-637.53,0.0004,120]
[403723346,1769508684569,-334.43,0.0004,120]
[403723347,1769508684579,-572.12,0.0004,120]
[403723348,1769508684590,-766.95,0.0004,120]
[403723349,1769508684600,-963.24,0.0004,120]
[403723350,1769508684610,-646.05,0.0004,120]
[403723351,1769508684620,-339.67,0.0004,120]
[403723352,1769508684629,-253.0,0.0004,30]
[403723353,1769508684639,-600.0,0.0004,2]
[403723354,1769508684649,-157.36498,0.00040088,30]
[403723355,1769508684659,-12129.0,0.00040188,20]
[403723356,1769508684669,-800.0,0.00040222,14]
[403723357,1769508684679,-500.0,0.00040222,14]
[403723358,1769508684689,-1000.0,0.00040274,14]
[403723359,1769508684699,-157.36498,0.00040288,30]
[403723360,1769508684709,-2150.523,0.00040371,57]
[403723361,1769508684719,-174.363,0.00040371,57]
[403723362,1769508684729,-250.0,0.000404,45]
[403723363,1769508684739,-250.0,0.000404,45]
[403723364,1769508684749,-503.0,0.0004041,22]
[403723365,1769508684760,-157.36498,0.00040488,30]
[403723366,1769508684770,-250.0,0.000405,45]
[403723367,1769508684780,-250.0,0.000405,45]
[403723368,1769508684791,-250.0,0.000405,45]
[403723369,1769508685090,-250.0,0.000405,45]
[403723370,1769508685100,-250.0,0.000405,45]
[403723371,1769508685109,-250.0,0.000405,45]
[403723372,1769508685118,-250.0,0.000405,45]
[403723373,1769508685127,-250.0,0.000405,45]
[403723374,1769508685136,-250.0,0.000405,45]
[403723375,1769508685145,-250.0,0.000405,45]
[403723376,1769508685154,-250.0,0.000405,45]
[403723377,1769508685163,-250.0,0.000405,45]
[403723378,1769508685172,-170.50550517,0.000405,30]
[403723379,1769508685184,-265.7253148,0.000405,120]
[403723380,1769508685193,-250.0,0.000405,45]
[403723381,1769508685202,-250.0,0.000405,45]
[403723382,1769508685212,-250.0,0.000405,45]
[403723383,1769508685222,-250.0,0.000405,45]
[403723384,1769508685231,-1000.0,0.00040548,14]
[403723385,1769508685240,-600.0,0.00040548,2]
[403723386,1769508685250,-12129.0,0.00040582,20]
[403723387,1769508685259,-151.0,0.000406,120]
[403723388,1769508685268,-153.0,0.000406,120]
[403723389,1769508685278,-169.44904283,0.00040668,70]
[403723390,1769508685289,-157.36498,0.00040688,30]
[403723391,1769508685299,-157.67,0.00040692,120]
[403723392,1769508685310,-600.0,0.0004077,14]
[403723393,1769508685321,-157.67,0.00040792,120]
[403723394,1769508685330,-1000.0,0.00040822,14]
[403723395,1769508685343,-1000.0,0.00040864,2]
[403723396,1769508685352,-615.0,0.00040885,2]
[403723397,1769508685361,-157.36498,0.00040888,30]
[403723398,1769508685370,-157.67,0.00040892,120]
[403723399,1769508685379,-162.71560627,0.000409,120]
[403723400,1769508685388,-250.0,0.000409,45]
[403723401,1769508685397,-210.0,0.0004093,30]
[403723402,1769508685406,-150.0,0.00040932,2]
[403723403,1769508685415,-157.67,0.00040992,120]
[403723404,1769508685425,-7594.34697711,0.00040998,2]
[403723405,1769508685435,-153.2,0.00040999,3]
[403723406,1769508685446,-985.94648065,0.00041,2]
[403723407,1769508685456,-250.0,0.00041,45]
[403723408,1769508685467,-250.0,0.00041,45]
[403723409,1769508685477,-714.59599341,0.00041,30]
[403723410,1769508685487,-250.0,0.00041,45]
[403723411,1769508685498,-250.0,0.00041,45]
[403723412,1769508685508,-250.0,0.00041,45]
[403723413,1769508685519,-250.0,0.00041,45]
[403723414,1769508685528,-250.0,0.00041,45]
[403723415,1769508685539,-400.26406649,0.00041,120]
[403723416,1769508685550,-250.0,0.00041,45]
[403723417,1769508685560,-250.0,0.00041,45]